bitfinex/quotes_SOLUSD_20260302
["timestamp","ask_amount","ask_price","bid_price","bid_amount"]
[1772491182571,1.44035903,88.097,88.061,1.39046016]
[1772491182881,1.44035903,88.087,88.061,1.39046016]
[1772491183063,1.44035903,88.085,88.062,1.39046016]
[1772491184181,1.44035903,88.085,88.064,1.39046016]
[1772491185187,1.44035903,88.107,88.071,1.39046016]
[1772491185765,1.44035903,88.114,88.081,1.39046016]
[1772491186289,1.44035903,88.112,88.081,1.39046016]
[1772491187569,0.28432314,88.111,88.081,1.39046016]
[1772491187772,0.28432314,88.109,88.081,1.39046016]
[1772491188092,1.69671262,88.109,88.081,1.39046016]
[1772491188278,0.28432314,88.107,88.081,1.39046016]
[1772491188671,1.69671262,88.107,88.081,1.39046016]
[1772491194003,11.34996481,88.106,88.081,1.39046016]
[1772491194174,11.34996481,88.106,88.05,3.69383402]
[1772491194175,1.41238948,88.12,88.091,1.37952644]
[1772491194488,11.34700268,88.129,88.111,1.37952644]
[1772491196374,1.41238948,88.128,88.111,1.37952644]
[1772491196899,42.27238948,88.13,88.101,1.37952644]
[1772491197194,11.34700268,88.129,88.102,1.37952644]
[1772491197399,11.34700268,88.129,88.101,11.35060896]
[1772491197400,1.41238948,88.174,88.121,1.37952644]
[1772491197596,1.41238948,88.174,88.151,1.37952644]
[1772491198290,1.41238948,88.172,88.141,1.37952644]
[1772491198488,1.41238948,88.172,88.146,1.37952644]
[1772491200179,1.41238948,88.166,88.114,1.37952644]
[1772491200378,39.69559151,88.171,88.08,3.95439921]
[1772491200379,1.41238948,88.157,88.116,1.37952644]
[1772491200677,1.69671262,88.129,88.086,1.37952644]
[1772491200896,1.69671262,88.129,88.088,1.37952644]
[1772491201095,1.69671262,88.119,88.078,12.53591781]
[1772491201277,1.69671262,88.109,88.06,3.95439921]
[1772491201479,4.82477569,88.118,88.046,1.37952644]
[1772491201480,1.69671262,88.089,88.046,1.37952644]
[1772491201691,1.69671262,88.079,88.038,1.37952644]
[1772491202000,3.95439921,88.08,88.03,3.95439921]
[1772491202001,1.69671262,88.069,88.03,1.37952644]
[1772491202302,1.69671262,88.067,88.021,12.74034098]
[1772491202806,1.41238948,88.104,88.061,1.37952644]
[1772491202984,1.41238948,88.102,88.07,10.62153807]
[1772491203298,11.35022246,88.104,88.053,1.37952644]
[1772491203299,1.41238948,88.099,88.053,1.37952644]
[1772491204685,10.62153807,88.1,88.054,1.37952644]
[1772491204686,1.41238948,88.097,88.054,1.37952644]
[1772491204901,1.41238948,88.091,88.055,1.37952644]
[1772491205900,1.41238948,88.091,88.046,11.35769938]
[1772491206097,1.41238948,88.091,88.047,1.37952644]
[1772491206401,1.41238948,88.091,88.05,10.62153807]
[1772491206602,11.35202633,88.09,88.051,11.35705443]
[1772491206899,1.41238948,88.089,88.051,11.35705443]
[1772491207303,1.41238948,88.089,88.052,1.37952644]
[1772491209305,11.35228407,88.088,88.052,1.37952644]
[1772491209487,1.41238948,88.087,88.052,1.37952644]
[1772491209886,1.41238948,88.087,88.045,11.35777926]
[1772491211709,1.41238948,88.085,88.03,10.62153807]
[1772491211890,39.73389641,88.086,88.023,1.37952644]
[1772491211891,1.41238948,88.079,88.023,1.37952644]
[1772491212086,1.41238948,88.079,88.02,10.62153807]
[1772491212087,1.41238948,88.069,88.02,10.62153807]
[1772491212708,1.41238948,88.039,87.991,1.37952644]
[1772491213490,1.41238948,88.029,87.981,1.37952644]
[1772491213891,39.76007633,88.028,87.981,1.37952644]
[1772491214094,1.41238948,88.027,87.981,1.37952644]
[1772491215316,1.41238948,88.038,88.001,1.37952644]
[1772491216195,1.41238948,88.038,88.0,10.62153807]
[1772491216196,12.77112093,88.038,88.003,1.37952644]
[1772491216590,1.41238948,88.038,88.011,1.37952644]
[1772491216795,11.3581465,88.043,88.011,1.37952644]
[1772491218414,11.3581465,88.043,88.02,10.62153807]
[1772491218716,12.76988409,88.048,88.021,1.30854103]
[1772491219617,12.64396079,88.053,88.021,1.30854103]
[1772491221011,11.35626739,88.058,88.031,1.30854103]
[1772491221215,11.35626739,88.058,88.022,11.36079616]
[1772491221216,1.28706799,88.071,88.041,1.30854103]
[1772491221413,11.35320854,88.081,88.051,1.30854103]
[1772491221606,11.35320854,88.081,88.06,10.62153807]
[1772491221812,11.3526584,88.086,88.06,11.9300791]
[1772491222023,11.35202633,88.09,88.061,1.30854103]
[1772491222399,12.63783665,88.1,88.071,1.30810711]
[1772491223018,12.63783665,88.1,88.072,12.66245355]
[1772491223220,12.63783665,88.1,88.073,1.30810711]
[1772491223420,11.34979507,88.108,88.08,10.62153807]
[1772491224017,11.34979507,88.108,88.08,11.9123123]
[1772491225108,1.28706799,88.107,88.06,11.89517852]
[1772491225317,1.28706799,88.107,88.064,11.3552583]
[1772491225516,1.28706799,88.107,88.07,11.87824153]
[1772491227530,1.28706799,88.105,88.07,11.87824153]
[1772491231326,1.28706799,88.103,88.071,1.1590895]
[1772491233423,1.28706799,88.101,88.061,1.1280264]
[1772491233740,1.28706799,88.101,88.062,1.1280264]
[1772491237250,0.14216157,88.1,88.062,1.1280264]
[1772491237454,1.28706799,88.099,88.062,1.1280264]
[1772491237763,1.28706799,88.089,88.049,1.06801246]
[1772491238060,1.28706799,88.089,88.05,10.62153807]
[1772491238249,1.28706799,88.089,88.05,11.68955053]
[1772491238644,1.28706799,88.089,88.051,1.05343731]
[1772491239040,1.28706799,88.087,88.051,1.05343731]
[1772491239242,39.73299426,88.088,88.04,10.62153807]
[1772491239243,1.28706799,88.081,88.04,10.62153807]
[1772491239466,1.28706799,88.079,88.041,1.03902956]
[1772491239757,1.28706799,88.079,88.04,10.62153807]
[1772491239758,1.28706799,88.077,88.024,1.03902956]
[1772491239963,1.28706799,88.059,88.02,1.03902956]
[1772491240751,1.28706799,88.059,88.02,11.66056763]
[1772491240962,1.28706799,88.059,88.02,10.62153807]
[1772491241159,1.28706799,88.057,88.02,11.64632538]
[1772491241361,1.28706799,88.108,88.05,10.62153807]
[1772491241562,1.28706799,88.104,88.07,10.62153807]
[1772491243474,1.28706799,88.102,88.071,11.35447536]
[1772491244153,1.28706799,88.102,88.06,10.62153807]
[1772491244558,1.28706799,88.102,88.07,10.62153807]
[1772491245870,1.28706799,88.1,88.07,10.62153807]
[1772491246964,1.28706799,88.098,88.07,10.62153807]
[1772491247167,1.28706799,88.098,88.071,11.35447536]
[1772491251668,1.10582275,88.096,88.051,11.35705443]
[1772491251970,1.10582275,88.096,88.06,10.62153807]
[1772491252149,1.10582275,88.096,88.051,11.35705443]
[1772491252965,1.10582275,88.094,88.051,39.74969051]
[1772491253267,0.28432314,88.093,88.051,11.35705443]
[1772491253465,1.10582275,88.09,88.05,10.62153807]
[1772491255470,1.10582275,88.088,88.05,10.62153807]
[1772491257271,1.10582275,88.086,88.05,21.9786782]
[1772491260561,1.10582275,88.084,88.05,10.61364196]
[1772491261774,1.10582275,88.082,88.05,11.35707123]
[1772491262077,1.10582275,88.107,88.07,10.61364196]
[1772491262277,1.10582275,88.107,88.08,10.61364196]
[1772491263286,1.10582275,88.107,88.07,10.61364196]
[1772491264392,1.10582275,88.105,88.071,11.35447536]
[1772491265874,1.10582275,88.128,88.1,10.61364196]
[1772491266074,1.10582275,88.125,88.1,10.61364196]
[1772491266291,1.10582275,88.123,88.1,10.61364196]
[1772491266671,0.28432314,88.122,88.1,10.61364196]
[1772491266896,1.39014589,88.122,88.1,10.61364196]
[1772491267068,0.28432314,88.12,88.09,10.61364196]
[1772491267469,1.39014589,88.12,88.09,10.61364196]
[1772491267882,1.10582275,88.119,88.09,10.61364196]
[1772491268286,11.34841916,88.118,88.091,11.35189746]
[1772491268484,11.34841916,88.118,88.09,3.95837418]
[1772491268994,12.45424191,88.118,88.09,3.95837418]
[1772491270299,1.10582275,88.117,88.09,15.31035702]
[1772491270490,1.10582275,88.117,88.09,21.95488643]
[1772491270686,1.10582275,88.117,88.09,10.60290359]
[1772491270889,1.10582275,88.117,88.091,11.35189746]
[1772491274204,11.34867674,88.116,88.1,10.60290359]
[1772491275402,1.10582275,88.117,88.1,10.60290359]
[1772491275588,11.63068209,88.134,88.1,10.60290359]
[1772491275901,1.10582275,88.132,88.1,10.60290359]
[1772491276085,11.34687393,88.13,88.1,10.60290359]
[1772491276286,1.10582275,88.129,88.1,10.60290359]
[1772491278304,1.10582275,88.127,88.1,10.60290359]
[1772491279204,11.34738896,88.126,88.1,10.60290359]
[1772491279395,1.10582275,88.125,88.1,10.60290359]
[1772491279705,11.34738896,88.126,88.1,10.60290359]
[1772491280499,1.10582275,88.125,88.1,10.60290359]
[1772491280890,4.82477569,88.144,88.097,11.351078]
[1772491280891,1.10582275,88.158,88.11,10.60290359]
[1772491281106,1.10582275,88.158,88.12,10.60290359]
[1772491281299,1.10582275,88.156,88.12,10.60290359]
[1772491281484,1.10582275,88.156,88.117,11.34847393]
[1772491282829,1.10582275,88.156,88.12,10.60290359]
[1772491283289,1.10582275,88.154,88.12,10.60290359]
[1772491284708,4.82477569,88.169,88.11,10.60290359]
[1772491284709,1.10582275,88.15,88.11,10.60290359]
[1772491286393,1.10582275,88.14,88.11,10.60290359]
[1772491288813,1.10582275,88.138,88.11,10.60290359]
[1772491290812,11.34597274,88.137,88.11,10.60290359]
[1772491291012,1.10582275,88.136,88.11,10.60290359]
[1772491292617,1.10582275,88.134,88.11,3.95711421]
[1772491293623,1.10582275,88.134,88.095,3.69383402]
[1772491293820,1.10582275,88.134,88.091,11.35189746]
[1772491293821,1.10582275,88.132,88.1,3.95711421]
[1772491294001,1.10582275,88.13,88.1,3.95711421]
[1772491294410,1.10582275,88.13,88.091,11.35189746]
[1772491294610,1.10582275,88.119,88.08,3.95711421]
[1772491295012,1.10582275,88.109,88.07,3.95711421]
[1772491295725,1.10582275,88.109,88.041,1.13583444]
[1772491295726,3.95711421,88.08,88.022,11.36074956]
[1772491295925,3.95711421,88.08,87.98,45.66461045]
[1772491295926,1.10582275,88.038,88.0,3.95711421]
[1772491296116,1.10582275,88.03,88.0,3.95711421]
[1772491296631,1.10582275,88.03,88.001,11.36350723]
[1772491296827,1.10582275,88.03,88.01,3.95711421]
[1772491297029,28.39084306,88.057,88.02,3.95711421]
[1772491297030,0.28432314,88.052,88.02,3.95711421]
[1772491297211,1.10582275,88.049,88.02,3.95711421]
[1772491298224,1.10582275,88.049,88.021,11.36092523]
[1772491299225,1.10582275,88.047,88.021,11.36092523]
[1772491300730,1.10582275,88.047,88.011,11.36221608]
[1772491301832,1.10582275,88.047,88.011,39.76775629]
[1772491303728,0.28432314,88.056,87.98,1.33662195]
[1772491303729,11.35769938,88.046,88.004,3.69383402]
[1772491303929,1.10582275,88.045,88.01,10.62203706]
[1772491305325,1.10582275,88.051,88.02,10.62203706]
[1772491305531,1.10582275,88.078,88.04,10.62203706]
[1772491305716,1.10582275,88.078,88.05,10.62203706]
[1772491305912,102.7,88.159,88.061,0.61479462]
[1772491306117,102.7,88.159,88.041,130.62096067]
[1772491306118,10.62203706,88.13,88.08,10.62203706]
[1772491306319,4.82477569,88.129,88.08,10.62203706]
[1772491306528,39.71000351,88.139,88.09,10.62203706]
[1772491306731,11.34571529,88.139,88.1,10.62203706]
[1772491307042,11.34442818,88.149,88.1,10.62203706]
[1772491307222,11.34442818,88.149,88.11,10.62203706]
[1772491307624,0.1,88.2,88.12,10.62203706]
[1772491307819,0.1,88.2,88.13,10.62203706]
[1772491307820,20.80529373,88.163,88.13,10.62203706]
[1772491308151,0.83063835,88.162,88.13,10.62203706]
[1772491308919,0.97279992,88.132,88.082,28.38245297]
[1772491309243,0.83063835,88.119,88.085,3.69383402]
[1772491309620,0.83063835,88.119,88.09,10.62203706]
[1772491310851,0.83063835,88.119,88.084,3.69383402]
[1772491310852,0.83063835,88.13,88.1,10.62203706]
[1772491311362,0.83063835,88.13,88.093,0.58773102]
[1772491311945,0.83063835,88.129,88.091,11.35189746]
[1772491312446,0.83063835,88.109,88.06,10.62203706]
[1772491312675,5.65541404,88.104,88.047,0.57189023]
[1772491312844,39.72532772,88.105,88.033,11.35937659]
[1772491312845,0.83063835,88.089,88.04,10.62203706]
[1772491313260,0.83063835,88.087,88.033,11.35937659]
[1772491313464,0.83063835,88.087,87.976,90.93368277]
[1772491313465,0.83063835,88.069,88.021,11.36092523]
[1772491314844,3.69383402,88.109,88.021,11.36092523]
[1772491314845,0.83063835,88.089,88.04,10.62203706]
[1772491316158,0.83063835,88.079,88.04,10.62203706]
[1772491316671,0.83063835,88.069,88.031,0.55641124]
[1772491316956,0.83063835,88.067,88.032,11.35950563]
[1772491318572,0.83063835,88.067,88.04,10.62203706]
[1772491318867,0.83063835,88.067,88.041,11.3583444]
[1772491319282,0.83063835,88.065,88.041,11.3583444]
[1772491320257,0.83063835,88.065,88.033,11.35930824]
[1772491321064,0.83063835,88.061,88.003,0.51206341]
[1772491321265,0.83063835,88.039,88.003,0.51206341]
[1772491321573,0.83063835,88.039,88.003,3.69383402]
[1772491323075,0.83063835,88.029,87.999,11.36376549]
[1772491323366,0.83063835,88.015,87.97,10.81749607]
[1772491323574,0.83063835,88.009,87.978,11.36643102]
[1772491324369,0.83063835,88.027,87.981,0.48416066]
[1772491324550,0.83063835,88.019,87.99,10.61749607]
[1772491324754,10.61749607,88.05,88.001,0.77020804]
[1772491324972,4.82477569,88.049,88.001,0.77020804]
[1772491325150,11.35757038,88.047,88.003,0.77020804]
[1772491325351,4.82477569,88.058,88.011,0.77020804]
[1772491325547,0.28432314,88.057,88.021,0.77020804]
[1772491325746,11.35602266,88.059,88.021,0.77020804]
[1772491326772,0.83063835,88.058,88.021,0.77020804]
[1772491327170,0.83063835,88.088,88.05,10.61749607]
[1772491327375,10.61749607,88.13,88.071,0.77020804]
[1772491327574,11.34700268,88.129,88.081,0.77020804]
[1772491327871,5.10909883,88.128,88.081,0.77020804]
[1772491329272,0.83063835,88.127,88.081,0.77020804]
[1772491329485,0.83063835,88.125,88.082,12.12326541]
[1772491329678,0.83063835,88.125,88.083,0.77020804]
[1772491332361,0.83063835,88.119,88.084,11.3527996]
[1772491332978,28.36750672,88.129,88.084,11.3527996]
[1772491332979,0.83063835,88.146,88.101,0.77020804]
[1772491333290,0.1,88.2,88.142,0.77020804]
[1772491333291,1.01236179,88.175,88.142,0.77020804]
[1772491333488,1e-08,88.175,88.161,0.77020804]
[1772491333690,1e-08,88.18,88.161,0.77020804]
[1772491334487,1e-08,88.18,88.145,0.77020804]
[1772491334670,1e-08,88.18,88.13,14.31133009]
[1772491334671,10.61749607,88.16,88.122,0.77020804]
[1772491334876,0.28432314,88.169,88.122,0.77020804]
[1772491335098,5.10909883,88.169,88.122,0.77020804]
[1772491335282,0.83063835,88.16,88.122,0.77020804]
[1772491336794,11.34314136,88.159,88.122,0.77020804]
[1772491337098,0.67831603,88.158,88.122,0.77020804]
[1772491338897,0.696772,88.156,88.122,0.77020804]
[1772491339084,0.696772,88.15,88.113,0.7344274]
[1772491339282,0.696772,88.15,88.103,12.08470558]
[1772491339283,0.696772,88.149,88.103,12.08470558]
[1772491339502,0.696772,88.149,88.104,0.7344274]
[1772491343581,0.696772,88.147,88.104,0.7344274]
[1772491343786,0.696772,88.129,88.092,0.7344274]
[1772491344787,0.696772,88.127,88.092,0.7344274]
[1772491346604,0.696772,88.125,88.084,0.7344274]
[1772491346802,0.696772,88.119,88.074,11.35408377]
[1772491347103,0.696772,88.119,88.078,0.7344274]
[1772491347494,0.696772,88.119,88.081,0.7344274]
[1772491349510,0.696772,88.117,88.081,0.7344274]
[1772491351104,11.34841916,88.118,88.091,0.7344274]
[1772491351486,28.36767907,88.129,88.092,11.3517686]
[1772491351806,0.28432314,88.132,88.101,0.7344274]
[1772491352796,11.34648769,88.133,88.101,0.7344274]
[1772491353006,11.34648769,88.133,88.111,0.7344274]
[1772491353902,0.696772,88.142,88.111,0.7344274]
[1772491353903,11.62978098,88.141,88.111,0.7344274]
[1772491356388,0.696772,88.139,88.091,0.7344274]
[1772491356590,0.696772,88.129,88.081,0.7344274]
[1772491356795,0.696772,88.119,88.06,10.61749607]
[1772491356997,0.696772,88.109,88.06,10.61749607]
[1772491358007,0.696772,88.109,88.051,11.35705443]
[1772491358795,0.696772,88.107,88.054,0.63350251]
[1772491359401,0.696772,88.107,88.06,10.61749607]
[1772491360199,0.696772,88.107,88.054,0.63350251]
[1772491360717,39.72487684,88.106,88.06,10.61749607]
[1772491361014,0.696772,88.105,88.06,10.61749607]
[1772491361315,0.696772,88.105,88.061,0.62045066]
[1772491363213,0.696772,88.097,88.041,0.61199736]
[1772491363410,0.696772,88.089,88.041,0.61199736]
[1772491363915,10.61749607,88.09,88.01,1.33623451]
[1772491363916,0.696772,88.079,88.027,0.61199736]
[1772491364105,0.696772,88.069,88.027,0.61199736]
[1772491365210,11.35241295,88.087,88.061,0.60373714]
[1772491365419,0.696772,88.098,88.061,0.60373714]
[1772491365598,39.72803322,88.099,88.071,0.60373714]
[1772491366219,11.35086663,88.099,88.071,0.60373714]
[1772491367723,0.63384181,88.101,88.071,0.60373714]
[1772491368499,0.63384181,88.101,88.073,0.58777838]
[1772491370227,11.35073779,88.1,88.073,0.58777838]
[1772491371822,0.63384181,88.099,88.07,21.97200222]
[1772491373622,0.63384181,88.099,88.07,11.35450615]
[1772491374121,0.63384181,88.097,88.063,0.56883952]
[1772491376325,0.63384181,88.095,88.065,0.55799032]
[1772491378830,11.35151088,88.094,88.066,11.35512002]
[1772491379007,0.63384181,88.093,88.066,11.35512002]
[1772491379822,0.63384181,88.093,88.065,0.55799032]
[1772491380030,0.63384181,88.093,88.06,11.35589238]
[1772491380413,0.63384181,88.093,88.057,0.54751069]
[1772491381413,0.63384181,88.091,88.058,11.35615162]
[1772491381613,0.63384181,88.091,88.05,10.61749607]
[1772491381816,0.63384181,88.089,88.041,0.54072334]
[1772491382037,0.63384181,88.089,88.044,0.54072334]
[1772491384117,0.63384181,88.087,88.05,10.61466834]
[1772491386738,0.63384181,88.085,88.05,3.96252315]
[1772491387727,0.63384181,88.083,88.05,3.96252315]
[1772491387920,0.63384181,88.083,88.051,11.35705443]
[1772491390236,0.63384181,88.081,88.051,11.35705443]
[1772491391423,0.63384181,88.081,88.052,0.50904236]
[1772491392232,0.63384181,88.102,88.071,0.50904236]
[1772491392435,39.72641835,88.103,88.081,0.50607093]
[1772491392436,11.35035129,88.103,88.081,0.50607093]
[1772491392635,11.3498901,88.107,88.09,3.96252315]
[1772491393732,11.3498901,88.107,88.088,0.50607093]
[1772491395237,0.63384181,88.113,88.088,0.50607093]
[1772491396833,11.34919193,88.112,88.088,0.50607093]
[1772491397229,11.94038423,88.112,88.088,0.50607093]
[1772491397713,0.58367436,88.111,88.088,0.50607093]
[1772491399416,0.58367436,88.109,88.08,0.4808178]
[1772491399924,0.58367436,88.109,88.072,0.4808178]
[1772491401521,0.58367436,88.107,88.074,0.47555373]
[1772491404023,11.34996481,88.106,88.076,0.47040988]
[1772491404236,0.58367436,88.107,88.076,0.47040988]
[1772491404923,0.58367436,88.117,88.076,0.47040988]
[1772491407743,0.58367436,88.115,88.076,0.46047196]
[1772491408939,0.58367436,88.115,88.075,28.38489923]
[1772491408940,0.58367436,88.113,88.078,0.45805841]
[1772491411828,0.58367436,88.111,88.079,11.35344406]
[1772491412028,0.58367436,88.111,88.08,0.45098283]
[1772491412744,11.34919193,88.112,88.081,0.44867827]
[1772491414849,11.9323511,88.116,88.083,0.44414826]
[1772491415149,0.58367436,88.129,88.091,0.44414826]
[1772491417355,0.58367436,88.127,88.093,0.4375465]
[1772491420857,0.58367436,88.125,88.095,0.43116963]
[1772491421960,0.58367436,88.125,88.101,0.42909264]
[1772491423861,11.93132085,88.124,88.101,0.42909264]
[1772491424047,0.58367436,88.123,88.101,0.42909264]
[1772491425961,56.72038014,88.152,87.906,40.9]
[1772491425962,0.58367436,88.144,88.11,3.96252315]
[1772491426159,0.58367436,88.144,88.111,0.42102055]
[1772491426359,0.58367436,88.144,88.102,11.35048012]
[1772491426360,0.58367436,88.144,88.12,3.96252315]
[1772491426552,0.58367436,88.144,88.121,0.41906014]
[1772491427150,11.34520041,88.143,88.121,0.41906014]
[1772491427864,11.34520041,88.143,88.102,28.37620031]
[1772491427865,0.55692905,88.142,88.11,4.37772976]
[1772491428170,0.55692905,88.142,88.111,0.41520661]
[1772491428550,0.55692905,88.142,88.104,11.35022246]
[1772491428750,0.55692905,88.142,88.105,0.41331297]
[1772491430154,0.55692905,88.14,88.106,11.7614059]
[1772491430667,0.55692905,88.14,88.111,0.40959071]
[1772491431248,0.55692905,88.14,88.103,0.40959071]
[1772491431452,0.55692905,88.14,88.104,11.35022246]
[1772491431654,0.55692905,88.14,88.096,11.7589196]
[1772491431873,0.55692905,88.14,88.1,3.96252315]
[1772491432063,0.55692905,88.14,88.097,0.40776158]
[1772491432972,0.55692905,88.138,88.098,11.75694894]
[1772491433354,0.55692905,88.138,88.101,0.40416611]
[1772491433754,0.55692905,88.146,88.121,0.40416611]
[1772491433954,0.55692905,88.157,88.121,0.40416611]
[1772491434169,11.3439896,88.153,88.121,0.40416611]
[1772491434371,0.55692905,88.152,88.121,0.40416611]
[1772491435173,0.55692905,88.15,88.115,0.40239929]
[1772491436770,0.55692905,88.148,88.108,11.74854148]
[1772491436976,0.14216157,88.143,88.092,0.39892629]
[1772491437282,0.55692905,88.139,88.09,3.96252315]
[1772491437461,0.55692905,88.139,88.091,11.35189746]
[1772491438678,0.55692905,88.139,88.09,3.96252315]
[1772491438992,0.55692905,88.139,88.076,32.07826028]
[1772491438993,0.55692905,88.121,88.07,4.35805577]
[1772491439279,0.55692905,88.119,88.071,0.39553262]
[1772491439661,0.55692905,88.119,88.08,3.96252315]
[1772491441075,0.55692905,88.117,88.091,0.39221646]
[1772491441974,11.34841916,88.118,88.091,0.39221646]
[1772491442279,0.55692905,88.117,88.093,0.39058689]
[1772491442675,11.34841916,88.118,88.093,0.39058689]
[1772491442878,11.34841916,88.118,88.1,3.9584767]
[1772491443067,0.55692905,88.116,88.09,4.503636]
[1772491443379,0.55692905,88.116,88.091,0.5451593]
[1772491443689,0.55692905,88.128,88.091,0.5451593]
[1772491445277,0.55692905,88.126,88.101,0.5451593]
[1772491447176,0.55692905,88.124,88.101,0.5451593]
[1772491448092,0.55692905,88.124,88.097,11.35107719]
[1772491448294,0.55692905,88.124,88.094,0.5451593]
[1772491448494,0.55692905,88.124,88.095,11.35138203]
[1772491448684,0.55692905,88.124,88.096,0.5451593]
[1772491448881,0.55692905,88.124,88.09,4.503636]
[1772491449105,0.55692905,88.124,88.091,0.5451593]
[1772491449286,0.55692905,88.122,88.091,0.5451593]
[1772491449615,0.55692905,88.122,88.093,0.5451593]
[1772491452814,0.55692905,88.12,88.1,3.9584767]
[1772491453119,0.55692905,88.12,88.095,0.5451593]
[1772491454009,0.55692905,88.134,88.101,0.5451593]
[1772491455014,0.55692905,88.134,88.111,0.5451593]
[1772491455298,11.90187204,88.145,88.121,0.5451593]
[1772491455712,0.55692905,88.144,88.121,0.5451593]
[1772491457212,11.9020922,88.144,88.121,0.5451593]
[1772491457412,11.34516315,88.144,88.121,0.5451593]
[1772491459418,28.36121019,88.149,88.121,0.5451593]
[1772491459727,0.53230232,88.148,88.121,0.5451593]
[1772491460524,0.53230232,88.148,88.123,0.53237003]
[1772491461608,11.34468558,88.147,88.123,0.53237003]
[1772491461822,11.34468558,88.147,88.125,0.53237003]
[1772491463034,11.8769879,88.147,88.125,0.53237003]
[1772491463210,11.34468558,88.147,88.125,0.53237003]
[1772491463410,11.8769879,88.147,88.125,0.53237003]
[1772491464221,0.53230232,88.146,88.127,0.53237003]
[1772491466325,11.87724531,88.145,88.127,0.53237003]
[1772491466824,0.53230232,88.144,88.127,0.53237003]
[1772491467220,0.53230232,88.144,88.122,11.34785117]
[1772491467422,0.53230232,88.144,88.115,28.37197091]
[1772491467423,0.53230232,88.142,88.121,0.53237003]
[1772491468911,0.53230232,88.142,88.121,11.34797696]
[1772491469110,0.53230232,88.142,88.122,0.53237003]
[1772491470429,0.53230232,88.147,88.123,11.34777526]
[1772491470605,0.53230232,88.147,88.124,0.53237003]
[1772491472030,0.53230232,88.145,88.124,0.53237003]
[1772491472228,0.53230232,88.145,88.125,11.87988776]
[1772491472933,0.53230232,88.145,88.126,0.53237003]
[1772491474616,0.53230232,88.145,88.127,11.87963023]
[1772491475235,0.53230232,88.145,88.128,0.53237003]
[1772491475862,11.3450717,88.144,88.128,0.53237003]
[1772491476734,0.53230232,88.144,88.128,0.53237003]
[1772491477234,0.53230232,88.144,88.123,0.53237003]
[1772491477730,0.53230232,88.144,88.109,3.69383402]
[1772491477731,4.82477569,88.129,88.07,3.9584767]
[1772491478038,0.53230232,88.128,88.07,3.9584767]
[1772491478835,0.53230232,88.126,88.071,11.35447536]
[1772491479230,0.53230232,88.126,88.09,3.9584767]
[1772491479729,0.53230232,88.126,88.091,0.53237003]
[1772491479924,11.3472602,88.127,88.101,0.53237003]
[1772491481235,28.8975465,88.137,88.103,0.53237003]
[1772491481618,0.53230232,88.137,88.103,0.53237003]
[1772491481837,11.34558656,88.14,88.111,0.53237003]
[1772491483236,11.34558656,88.14,88.113,0.53237003]
[1772491484742,0.53230232,88.139,88.113,0.53237003]
[1772491486118,0.53230232,88.137,88.113,0.53237003]
[1772491487929,0.53230232,88.137,88.115,0.53194013]
[1772491488641,11.34610147,88.136,88.115,0.53194013]
[1772491491448,0.49648219,88.14,88.115,0.53194013]
[1772491492747,0.49648219,88.14,88.117,0.53194013]
[1772491493249,0.49648219,88.16,88.121,0.53194013]
[1772491493420,0.49648219,88.158,88.123,0.53194013]
[1772491493628,0.49648219,88.178,88.123,0.53194013]
[1772491493822,0.49648219,88.178,88.131,0.53194013]
[1772491494547,11.34056861,88.179,88.141,0.53194013]
[1772491495242,11.8370508,88.179,88.141,0.53194013]
[1772491495424,11.8370508,88.179,88.143,0.53194013]
[1772491495745,0.49648219,88.178,88.143,0.53194013]
[1772491497849,0.49648219,88.178,88.145,0.53194013]
[1772491498829,11.34082583,88.177,88.145,0.53194013]
[1772491499035,0.49648219,88.176,88.145,0.53194013]
[1772491500036,0.49648219,88.176,88.147,0.53194013]
[1772491500749,11.34056861,88.179,88.147,0.53194013]
[1772491501949,11.34056861,88.179,88.149,0.53194013]
[1772491502245,0.49648219,88.178,88.149,0.53194013]
[1772491504532,11.34082583,88.177,88.15,11.34429948]
[1772491504750,11.34082583,88.177,88.151,0.53194013]
[1772491505452,0.49648219,88.176,88.151,0.53194013]
[1772491506566,11.34108307,88.175,88.151,0.53194013]
[1772491506861,0.49648219,88.174,88.151,0.53194013]
[1772491508256,1e-08,88.18,88.151,0.53194013]
[1772491509232,1e-08,88.18,88.152,0.53194013]
[1772491509431,0.4964822,88.18,88.152,0.53194013]
[1772491510051,0.4964822,88.18,88.15,11.34419078]
[1772491510253,0.4964822,88.18,88.151,0.53194013]
[1772491510950,0.49648219,88.178,88.153,0.53194013]
[1772491511142,0.49648219,88.178,88.147,11.87653663]
[1772491512242,0.49648219,88.176,88.148,0.53194013]
[1772491514562,0.49648219,88.174,88.142,0.53194013]
[1772491517166,0.50580754,88.172,88.144,0.50137315]
[1772491517468,0.49490936,88.165,88.122,0.49737472]
[1772491517761,0.49490936,88.149,88.115,0.49737472]
[1772491517964,0.49490936,88.149,88.107,0.49737472]
[1772491518360,0.49490936,88.149,88.111,0.49737472]
[1772491519050,0.49490936,88.147,88.112,0.49737472]
[1772491519252,0.49490936,88.147,88.112,11.84656665]
[1772491519638,0.49490936,88.147,88.113,0.49737472]
[1772491521044,0.49490936,88.147,88.12,3.95430037]
[1772491521260,0.49490936,88.169,88.141,0.49737472]
[1772491522044,11.34181114,88.17,88.141,0.49737472]